[Event "FIDE WCCC U10 2018"]
[Site "Santiago de Compostela"]
[Date "2018.11.10"]
[Round "6"]
[White "Chen, Muye"]
[Black "Uritsky, Yonathan"]
[Result "1-0"]
[ECO "E87"]
[WhiteElo "1636"]
[BlackElo "1902"]
[Annotator "NA"]
[PlyCount "117"]
[EventDate "2018.11.04"]
[EventType "swiss"]
[EventCountry "ESP"]
[SourceTitle "playchess.com"]
[Source "ChessBase"]
[SourceQuality "1"]
[TimeControl "40/5400+30:1800+30"]

1. d4 {[%emt 0:00:00]} Nf6 {[%emt 0:00:01]} 2. c4 {[%emt 0:00:00]} g6 {[%emt 0:00:29]} 3. Nc3 {[%emt 0:00:00]} Bg7 {[%emt 0:00:30]} 4. e4 {[%emt 0:00:30]} d6 {[%emt 0:00:08]} 5. f3 {[%emt 0:00:05]} O-O {[%emt 0:00:32]} 6. Be3 {[%emt 0:00:07]} e5 {[%emt 0:02:04]} 7. d5 {[%emt 0:00:10]} a5 {[%emt 0:00:43]} 8. Bd3 {[%emt 0:00:09]} Na6 {[%emt 0:01:09]} 9. Nge2 $14 {[%emt 0:00:29] LiveBook: 12 Games} Ne8 {[%emt 0:00:52]} 10. Qd2 {[%emt 0:02:09]} f5 {[%emt 0:02:46]} 11. O-O-O {[%emt 0:02:04]} c6 {[%emt 0:03:48]} 12. Na4 {[%emt 0:01:13]} cxd5 {[%emt 0:01:01]} 13. Nb6 {[%emt 0:04:07]} fxe4 {[%emt 0:09:47]} 14. Bxe4 {[%emt 0:15:01]} dxe4 {[%emt 0:35:28]} 15. Nxa8 {[%emt 0:06:17]} exf3 {[%emt 0:01:08]} 16. gxf3 {[%emt 0:06:18]} Bf5 {[%emt 0:00:55]} 17. Qd5+ {[%emt 0:01:52]} Rf7 {[%emt 0:03:52]} 18. Nb6 {[%emt 0:03:53]} Nb4 {[%emt 0:05:11]} 19. Qxa5 {[%emt 0:02:30]} Nd3+ {[%emt 0:01:29]} 20. Kd2 {[%emt 0:01:39]} Nxb2 {[%emt 0:00:27]} 21. Rc1 {[%emt 0:05:31]} Nd3 {[%emt 0:03:53]} 22. Rcf1 {[%emt 0:03:02]} Nf4 {[%emt 0:06:03]} 23. Ng3 {[%emt 0:11:14]} Bd3 {[%emt 0:02:02]} 24. Rc1 {[%emt 0:01:18]} Qh4 {[%emt 0:01:32]} 25. Qa8 {[%emt 0:01:57]} Kf8 {[%emt 0:02:04]} 26. Qc8 {[%emt 0:01:05]} Bh6 {[%emt 0:03:20]} 27. Qg4 {[%emt 0:01:47]} Qd8 {[%emt 0:00:40]} 28. Rhg1 {[%emt 0:01:35]} g5 {[%emt 0:07:48]} 29. Rc3 {[%emt 0:04:03]} Bg6 {[%emt 0:00:18]} 30. Ra3 {[%emt 0:00:34]} Nf6 {[%emt 0:01:06]} 31. Qc8 {[%emt 0:00:29]} Qxc8 {[%emt 0:00:06]} 32. Nxc8 {[%emt 0:00:03]} Rd7 {[%emt 0:01:21]} 33. Ra8 {[%emt 0:00:57]} Kf7 {[%emt 0:01:23]} 34. Nb6 {[%emt 0:00:41]} Rc7 {[%emt 0:00:12]} 35. Rc8 {[%emt 0:00:06]} Re7 {[%emt 0:00:40]} 36. Rb8 {[%emt 0:04:26]} e4 {[%emt 0:02:06]} 37. fxe4 {[%emt 0:00:40]} Nxe4+ {[%emt 0:00:20]} 38. Nxe4 {[%emt 0:00:07]} Bxe4 {[%emt 0:00:36]} 39. Rd8 {[%emt 0:00:42]} Ke6 {[%emt 0:00:35]} 40. Nc8 {[%emt 0:00:00]} Rd7 {[%emt 0:00:00]} 41. Rxd7 {[%emt 0:01:19]} Kxd7 {[%emt 0:01:08]} 42. Nb6+ {[%emt 0:00:12]} Kc6 {[%emt 0:01:14]} 43. Nd5 {[%emt 0:01:24]} Nxd5 {[%emt 0:02:58]} 44. cxd5+ {[%emt 0:00:11]} Bxd5 {[%emt 0:00:12]} 45. a3 {[%emt 0:00:20]} Be4 {[%emt 0:04:36]} 46. Bxg5 {[%emt 0:01:30]} Bxg5+ {[%emt 0:00:16]} 47. Rxg5 {[%emt 0:00:05]} d5 {[%emt 0:00:18]} 48. Kc3 {[%emt 0:00:08]} Kc5 {[%emt 0:01:01]} 49. h4 {[%emt 0:00:16]} b5 {[%emt 0:00:45]} 50. Re5 {[%emt 0:00:16]} Kd6 {[%emt 0:00:42]} 51. Kd4 {[%emt 0:00:05]} Bf3 {[%emt 0:03:16]} 52. Rf5 {[%emt 0:00:30]} Be4 {[%emt 0:01:27]} 53. Rh5 {[%emt 0:00:19]} Ke6 {[%emt 0:00:50]} 54. Rh6+ {[%emt 0:00:05]} Kf5 {[%emt 0:01:19]} 55. Rxh7 {[%emt 0:00:12]} Kg4 {[%emt 0:00:26]} 56. Rh8 {[%emt 0:00:15]} Bf3 {[%emt 0:00:09]} 57. Rb8 {[%emt 0:00:25]} Kxh4 {[%emt 0:00:33]} 58. Rxb5 {[%emt 0:00:06]} Kg5 {[%emt 0:00:18]} 59. Rxd5+ {[%emt 0:00:08]} 1-0

[Event "FIDE WCCC U10 2018"]
[Site "Santiago de Compostela"]
[Date "2018.11.10"]
[Round "6"]
[White "Li Yihao"]
[Black "Materia, Marco"]
[Result "1-0"]
[ECO "C56"]
[WhiteElo "1601"]
[BlackElo "2035"]
[Annotator "NA"]
[PlyCount "95"]
[EventDate "2018.11.04"]
[EventType "swiss"]
[EventCountry "ESP"]
[SourceTitle "playchess.com"]
[Source "ChessBase"]
[SourceQuality "1"]
[TimeControl "40/5400+30:1800+30"]

1. e4 e5 {[%emt 0:00:00]} 2. Nf3 {[%emt 0:00:29]} Nc6 {[%emt 0:00:00]} 3. d4 {[%emt 0:00:29]} exd4 {[%emt 0:00:00]} 4. Bc4 {[%emt 0:00:07]} Nf6 {[%emt 0:00:00]} 5. O-O {[%emt 0:00:18]} Nxe4 {[%emt 0:00:00]} 6. Re1 {[%emt 0:00:08]} d5 {[%emt 0:00:04]} 7. Bxd5 {[%emt 0:00:11]} Qxd5 {[%emt 0:00:06]} 8. Nc3 {[%emt 0:00:09]} Qd7 {[%emt 0:00:05]} 9. Nxe4 {[%emt 0:00:08]} Be7 {[%emt 0:00:06]} 10. Bg5 {[%emt 0:00:15]} O-O {[%emt 0:00:08]} 11. Bxe7 {[%emt 0:00:20]} Qxe7 {[%emt 0:00:07]} 12. Nxd4 {[%emt 0:00:17]} Bd7 {[%emt 0:00:09]} 13. Nc3 {[%emt 0:00:20]} Qd8 {[%emt 0:00:21]} 14. Nb3 {[%emt 0:04:35]} Bf5 {[%emt 0:02:59]} 15. Qe2 {[%emt 0:03:01]} Nd4 {[%emt 0:05:20]} 16. Nxd4 {[%emt 0:00:28]} Qxd4 {[%emt 0:00:07]} 17. Rad1 {[%emt 0:00:29]} Qg4 {[%emt 0:02:28]} 18. f3 $16 {[%emt 0:01:45]} Qb4 {[%emt 0:00:28]} 19. Nd5 {[%emt 0:00:41]} Qc5+ {[%emt 0:00:09]} 20. Qe3 {[%emt 0:02:10]} Qxe3+ {[%emt 0:02:13]} 21. Rxe3 {[%emt 0:00:14]} Bxc2 {[%emt 0:02:42]} 22. Rc1 {[%emt 0:02:25]} Ba4 {[%emt 0:02:35]} 23. b3 {[%emt 0:02:32]} Bc6 {[%emt 0:00:40]} 24. Ne7+ {[%emt 0:00:06]} Kh8 {[%emt 0:00:08]} 25. Nxc6 {[%emt 0:00:08]} bxc6 {[%emt 0:00:04]} 26. Rxc6 {[%emt 0:00:18]} Rfd8 {[%emt 0:01:02]} 27. Rxc7 {[%emt 0:00:21]} Rd1+ {[%emt 0:00:15]} 28. Kf2 {[%emt 0:00:07]} Rd2+ {[%emt 0:00:06]} 29. Re2 {[%emt 0:00:06]} Rxe2+ {[%emt 0:00:05]} 30. Kxe2 {[%emt 0:00:05]} Kg8 {[%emt 0:00:09]} 31. Kd3 {[%emt 0:00:26]} a5 {[%emt 0:00:38]} 32. Kc4 {[%emt 0:00:38]} a4 {[%emt 0:00:11]} 33. b4 {[%emt 0:00:33]} Kf8 {[%emt 0:01:27]} 34. b5 {[%emt 0:00:01]} Rb8 {[%emt 0:01:07]} 35. Kc5 {[%emt 0:00:11]} Ke8 {[%emt 0:00:20]} 36. b6 {[%emt 0:00:08]} g6 {[%emt 0:00:45]} 37. b7 {[%emt 0:00:11]} Kd8 {[%emt 0:00:05]} 38. Rxf7 {[%emt 0:00:15]} h6 {[%emt 0:00:27]} 39. Kd6 {[%emt 0:00:19]} Ke8 {[%emt 0:00:13]} 40. Rh7 {[%emt 0:00:00]} Rxb7 {[%emt 0:00:00]} 41. Rxb7 {[%emt 0:00:26]} Kf8 {[%emt 0:00:15]} 42. Ra7 {[%emt 0:00:12]} a3 {[%emt 0:00:06]} 43. Rxa3 {[%emt 0:00:07]} Kf7 {[%emt 0:00:08]} 44. Re3 {[%emt 0:00:06]} Kf6 {[%emt 0:00:06]} 45. a4 {[%emt 0:00:07]} Kf5 {[%emt 0:00:08]} 46. a5 {[%emt 0:00:07]} Kf4 {[%emt 0:00:12]} 47. Re4+ {[%emt 0:00:06]} Kg5 {[%emt 0:00:11]} 48. a6 {[%emt 0:00:09]} 1-0

[Event "FIDE WCCC U10 2018"]
[Site "Santiago de Compostela"]
[Date "2018.11.10"]
[Round "6"]
[White "Bakhrillaev, Bakhrom"]
[Black "Kolesov, Gordey"]
[Result "0-1"]
[ECO "C54"]
[WhiteElo "1587"]
[BlackElo "1823"]
[Annotator "NA"]
[PlyCount "123"]
[EventDate "2018.11.04"]
[EventType "swiss"]
[EventCountry "ESP"]
[SourceTitle "playchess.com"]
[Source "ChessBase"]
[SourceQuality "1"]
[TimeControl "40/5400+30:1800+30"]

1. e4 {[%emt 0:00:00]} e5 {[%emt 0:00:00]} 2. Nf3 {[%emt 0:00:00]} Nc6 {[%emt 0:00:06]} 3. Bc4 {[%emt 0:00:00]} Bc5 {[%emt 0:00:13]} 4. c3 {[%emt 0:00:00]} Nf6 {[%emt 0:00:20]} 5. d4 {[%emt 0:00:15]} exd4 {[%emt 0:00:12]} 6. cxd4 {[%emt 0:00:05]} Bb4+ {[%emt 0:00:13]} 7. Nc3 {[%emt 0:00:04]} Nxe4 {[%emt 0:00:46]} 8. O-O {[%emt 0:00:06]} Bxc3 {[%emt 0:00:20]} 9. d5 {[%emt 0:00:06]} Ne5 {[%emt 0:00:27]} 10. Nxe5 {[%emt 0:02:20]} Bxe5 {[%emt 0:00:24]} 11. Re1 {[%emt 0:01:18]} d6 {[%emt 0:25:55]} 12. Rxe4 {[%emt 0:01:12]} O-O {[%emt 0:01:09]} 13. a4 {[%emt 0:10:54]} Bf5 {[%emt 0:00:58]} 14. Re1 {[%emt 0:10:51]} Qh4 {[%emt 0:02:06]} 15. f4 {[%emt 0:00:33]} Bxf4 {[%emt 0:06:20]} 16. Bxf4 {[%emt 0:00:21]} Qxf4 {[%emt 0:00:02]} 17. Qb3 {[%emt 0:01:20]} Rae8 {[%emt 0:02:37]} 18. Rf1 {[%emt 0:01:03]} Qd4+ {[%emt 0:02:44]} 19. Kh1 {[%emt 0:00:48]} Re5 {[%emt 0:06:12]} 20. Rac1 {[%emt 0:06:04]} Bc8 {[%emt 0:03:21]} 21. Rcd1 {[%emt 0:11:34]} Qe3 {[%emt 0:04:29]} 22. Rd3 {[%emt 0:02:11]} Qe4 {[%emt 0:01:27]} 23. Rdf3 {[%emt 0:00:51]} Rf5 {[%emt 0:07:40]} 24. h3 {[%emt 0:05:15]} Rxf3 {[%emt 0:00:13]} 25. Rxf3 {[%emt 0:00:08]} Re8 {[%emt 0:01:27]} 26. Bb5 {[%emt 0:01:34]} Re7 {[%emt 0:02:04]} 27. Rg3 {[%emt 0:03:32]} Qe1+ {[%emt 0:01:32]} 28. Kh2 {[%emt 0:01:09]} Qe5 {[%emt 0:01:15]} 29. Kh1 {[%emt 0:01:35]} Qd4 {[%emt 0:00:31]} 30. Rf3 {[%emt 0:04:16]} Re1+ {[%emt 0:01:33]} 31. Rf1 {[%emt 0:01:05]} Re3 {[%emt 0:00:53]} 32. Qc2 {[%emt 0:01:11]} Re7 {[%emt 0:03:05]} 33. Qb3 {[%emt 0:03:33]} a6 {[%emt 0:01:04]} 34. Bc4 {[%emt 0:08:02]} Re3 {[%emt 0:01:11]} 35. Qc2 Qe4 {[%emt 0:00:20]} 36. Qf2 {[%emt 0:02:38]} f6 {[%emt 0:01:22]} 37. Kg1 {[%emt 0:00:45]} Qe5 {[%emt 0:01:59]} 38. Rc1 {[%emt 0:02:26]} Bd7 {[%emt 0:06:45]} 39. Bf1 {[%emt 0:01:17]} c6 {[%emt 0:01:51]} 40. dxc6 {[%emt 0:00:00]} Bxc6 {[%emt 0:00:00]} 41. Qd2 {[%emt 0:06:21]} Re4 {[%emt 0:02:49]} 42. Rd1 {[%emt 0:01:15]} Rxa4 {[%emt 0:05:19]} 43. Qxd6 {[%emt 0:01:41]} Qxd6 {[%emt 0:00:18]} 44. Rxd6 {[%emt 0:00:06]} Rb4 {[%emt 0:00:36]} 45. b3 {[%emt 0:00:40]} Bb5 {[%emt 0:00:57]} 46. Bxb5 {[%emt 0:02:30]} Rxb5 {[%emt 0:00:02]} 47. Rd3 {[%emt 0:00:13]} Kf7 {[%emt 0:01:02]} 48. Kf2 {[%emt 0:00:18]} Ke6 {[%emt 0:00:17]} 49. Ke2 {[%emt 0:00:42]} a5 {[%emt 0:01:24]} 50. Rc3 {[%emt 0:00:24]} Kd6 {[%emt 0:00:42]} 51. g4 {[%emt 0:01:19]} b6 {[%emt 0:00:52]} 52. Kf3 {[%emt 0:01:38]} Rc5 {[%emt 0:01:15]} 53. Re3 {[%emt 0:00:43]} Kc6 {[%emt 0:01:39]} 54. Kf4 {[%emt 0:00:34]} Kb5 {[%emt 0:01:15]} 55. Kg3 {[%emt 0:01:24]} Kb4 {[%emt 0:00:38]} 56. Re7 {[%emt 0:00:06]} g5 {[%emt 0:00:51]} 57. Re6 {[%emt 0:00:34]} Rb5 {[%emt 0:01:12]} 58. Rxf6 {[%emt 0:00:12]} Kxb3 {[%emt 0:00:08]} 59. Rf5 {[%emt 0:01:04]} Kb4 {[%emt 0:00:42]} 60. Rf7 {[%emt 0:01:13]} a4 {[%emt 0:00:09]} 61. h4 {[%emt 0:00:41]} h6 {[%emt 0:00:47]} 62. Rf6 0-1

[Event "FIDE WCCC U10 2018"]
[Site "Santiago de Compostela"]
[Date "2018.11.10"]
[Round "6"]
[White "Hardaway, Brewington"]
[Black "Ngo, Bach"]
[Result "1-0"]
[ECO "C41"]
[WhiteElo "1533"]
[BlackElo "1810"]
[Annotator "NA"]
[PlyCount "131"]
[EventDate "2018.11.04"]
[EventType "swiss"]
[EventCountry "ESP"]
[SourceTitle "playchess.com"]
[Source "ChessBase"]
[SourceQuality "1"]
[TimeControl "40/5400+30:1800+30"]

1. e4 {[%emt 0:00:00]} d6 {[%emt 0:00:00]} 2. d4 {[%emt 0:00:00]} Nf6 {[%emt 0:00:00]} 3. Nc3 {[%emt 0:00:01]} e5 {[%emt 0:00:00]} 4. Nf3 {[%emt 0:02:02]} Nbd7 {[%emt 0:00:00]} 5. Be2 {[%emt 0:00:28]} Be7 {[%emt 0:00:00]} 6. O-O {[%emt 0:00:23]} O-O {[%emt 0:00:05]} 7. h3 {[%emt 0:01:17]} c6 {[%emt 0:00:28]} 8. Be3 {[%emt 0:00:19]} b6 {[%emt 0:00:08]} 9. a4 {[%emt 0:00:52]} a6 {[%emt 0:00:10]} 10. Re1 {[%emt 0:04:26]} Bb7 $11 {[%emt 0:05:17]} 11. dxe5 {[%emt 0:07:02]} dxe5 {[%emt 0:00:46]} 12. Qd3 {[%emt 0:12:21]} Qc7 {[%emt 0:01:48]} 13. Qc4 {[%emt 0:01:53]} Rac8 {[%emt 0:09:30]} 14. b4 {[%emt 0:08:27]} b5 {[%emt 0:21:25]} 15. Qb3 {[%emt 0:01:19]} a5 {[%emt 0:09:58]} 16. bxa5 {[%emt 0:03:55]} b4 {[%emt 0:00:17]} 17. Nd1 {[%emt 0:03:40]} Qxa5 {[%emt 0:01:20]} 18. Bd3 {[%emt 0:00:35]} c5 {[%emt 0:02:29]} 19. Nd2 {[%emt 0:04:40]} Nb8 {[%emt 0:09:16]} 20. Nb2 {[%emt 0:02:35]} Ba6 {[%emt 0:01:30]} 21. Bxa6 {[%emt 0:01:29]} Qxa6 {[%emt 0:00:42]} 22. Nbc4 {[%emt 0:01:46]} Nfd7 {[%emt 0:00:50]} 23. Nf3 {[%emt 0:07:07]} Qe6 {[%emt 0:05:14]} 24. Rad1 {[%emt 0:02:02]} Rc7 {[%emt 0:02:42]} 25. Rd5 {[%emt 0:02:17]} Nc6 {[%emt 0:02:05]} 26. Red1 {[%emt 0:01:30]} f5 {[%emt 0:03:55]} 27. Ncxe5 {[%emt 0:05:42]} Ncxe5 {[%emt 0:01:08]} 28. Nxe5 {[%emt 0:00:30]} Nxe5 {[%emt 0:07:32]} 29. Rxe5 {[%emt 0:00:06]} Qxb3 {[%emt 0:00:32]} 30. cxb3 {[%emt 0:00:02]} f4 {[%emt 0:04:15]} 31. Rxe7 {[%emt 0:03:52]} Rxe7 {[%emt 0:00:05]} 32. Bxc5 {[%emt 0:00:06]} Rxe4 {[%emt 0:00:07]} 33. Bxf8 {[%emt 0:00:06]} Kxf8 {[%emt 0:00:05]} 34. Rd3 {[%emt 0:01:01]} g5 {[%emt 0:02:07]} 35. g3 {[%emt 0:00:17]} fxg3 {[%emt 0:00:12]} 36. fxg3 {[%emt 0:00:01]} Ke7 {[%emt 0:00:47]} 37. Kf2 {[%emt 0:00:04]} Kf6 {[%emt 0:00:14]} 38. Kf3 Re7 {[%emt 0:01:07]} 39. Rd6+ {[%emt 0:00:24]} Ke5 {[%emt 0:00:57]} 40. Rb6 {[%emt 0:00:00]} Rf7+ 41. Ke3 {[%emt 0:00:51]} Rc7 {[%emt 0:02:19]} 42. Rb5+ {[%emt 0:00:10]} Kf6 {[%emt 0:00:06]} 43. Rxb4 {[%emt 0:00:05]} Rc3+ {[%emt 0:00:05]} 44. Kf2 {[%emt 0:00:40]} h5 {[%emt 0:00:42]} 45. a5 {[%emt 0:00:46]} Rc2+ {[%emt 0:00:06]} 46. Ke1 {[%emt 0:00:16]} Kf5 {[%emt 0:04:34]} 47. a6 {[%emt 0:00:34]} Rc8 {[%emt 0:00:09]} 48. Rb5+ {[%emt 0:00:13]} Kf6 {[%emt 0:00:44]} 49. b4 {[%emt 0:00:07]} Ra8 {[%emt 0:00:23]} 50. Rb6+ {[%emt 0:00:05]} Ke5 {[%emt 0:00:05]} 51. b5 {[%emt 0:00:41]} Ke4 {[%emt 0:00:16]} 52. Ke2 {[%emt 0:00:20]} Kd4 {[%emt 0:00:28]} 53. Rb7 {[%emt 0:00:09]} Re8+ {[%emt 0:00:12]} 54. Kd2 {[%emt 0:00:11]} Rf8 {[%emt 0:00:32]} 55. Rd7+ {[%emt 0:01:22]} Kc5 {[%emt 0:00:13]} 56. Rb7 {[%emt 0:00:22]} Kd4 {[%emt 0:00:17]} 57. a7 {[%emt 0:00:35]} Rf2+ {[%emt 0:00:04]} 58. Ke1 {[%emt 0:00:06]} Ra2 {[%emt 0:00:06]} 59. b6 {[%emt 0:00:49]} Ra1+ {[%emt 0:00:35]} 60. Kd2 {[%emt 0:00:08]} Ra2+ {[%emt 0:00:05]} 61. Kc1 {[%emt 0:00:05]} Kc3 {[%emt 0:00:37]} 62. Rc7+ {[%emt 0:00:13]} Kd4 {[%emt 0:00:39]} 63. Rc2 {[%emt 0:00:30]} Ra1+ {[%emt 0:00:17]} 64. Kb2 {[%emt 0:00:08]} Ra6 {[%emt 0:00:10]} 65. b7 {[%emt 0:00:13]} Rb6+ {[%emt 0:00:09]} 66. Kc1 {[%emt 0:00:04]} 1-0

[Event "FIDE WCCC U10 2018"]
[Site "Santiago de Compostela"]
[Date "2018.11.10"]
[Round "6"]
[White "Lyakh, Vasiliy"]
[Black "Tsirilman, Guy"]
[Result "1-0"]
[ECO "A45"]
[WhiteElo "1363"]
[BlackElo "1813"]
[Annotator "NA"]
[PlyCount "77"]
[EventDate "2018.11.04"]
[EventType "swiss"]
[EventCountry "ESP"]
[SourceTitle "playchess.com"]
[Source "ChessBase"]
[SourceQuality "1"]
[TimeControl "40/5400+30:1800+30"]

1. d4 {[%emt 0:00:00]} Nf6 {[%emt 0:00:10]} 2. Bf4 {[%emt 0:00:00]} g6 {[%emt 0:01:47]} 3. e3 {[%emt 0:00:00]} Bg7 {[%emt 0:01:25]} 4. Nf3 {[%emt 0:00:00]} O-O {[%emt 0:00:37]} 5. Be2 {[%emt 0:00:10]} d6 {[%emt 0:00:41]} 6. O-O {[%emt 0:00:42]} c5 {[%emt 0:01:39]} 7. c3 {[%emt 0:00:11]} Be6 {[%emt 0:01:05]} 8. Nbd2 {[%emt 0:04:49]} Qb6 {[%emt 0:01:58]} 9. Qc2 {[%emt 0:05:51]} Rc8 {[%emt 0:03:54]} 10. Bc4 {[%emt 0:06:43]} Nd5 {[%emt 0:10:24]} 11. Bg3 {[%emt 0:02:24]} cxd4 {[%emt 0:06:14]} 12. cxd4 {[%emt 0:12:36]} Nc6 {[%emt 0:14:57]} 13. Qb3 {[%emt 0:05:20]} Qxb3 {[%emt 0:06:54]} 14. Bxb3 {[%emt 0:03:12]} Na5 {[%emt 0:04:25]} 15. Ba4 {[%emt 0:01:58]} Nb6 {[%emt 0:00:43]} 16. Bb5 {[%emt 0:03:11]} a6 {[%emt 0:00:54]} 17. Bd3 {[%emt 0:00:34]} Nac4 {[%emt 0:01:11]} 18. b3 {[%emt 0:03:41]} Nxd2 {[%emt 0:01:10]} 19. Nxd2 {[%emt 0:00:04]} Nd5 {[%emt 0:00:42]} 20. Be4 {[%emt 0:01:12]} Rab8 {[%emt 0:06:20]} 21. Bf3 {[%emt 0:08:17]} Bh6 {[%emt 0:02:44]} 22. Rfd1 {[%emt 0:08:32]} Rc2 {[%emt 0:17:14]} 23. Nc4 {[%emt 0:03:20]} b5 {[%emt 0:02:54]} 24. Na3 {[%emt 0:01:13]} Rb2 {[%emt 0:00:17]} 25. Rdb1 {[%emt 0:02:20]} Rxb1+ {[%emt 0:01:23]} 26. Rxb1 {[%emt 0:00:13]} Nc3 {[%emt 0:00:36]} 27. Rb2 {[%emt 0:00:59]} b4 {[%emt 0:01:46]} 28. Nc2 {[%emt 0:05:20]} a5 {[%emt 0:03:25]} 29. h3 {[%emt 0:03:47]} Bg7 {[%emt 0:02:15]} 30. Ne1 {[%emt 0:05:42]} a4 {[%emt 0:01:53]} 31. bxa4 Bxa2 {[%emt 0:00:42]} 32. Nd3 {[%emt 0:06:14]} b3 {[%emt 0:02:23]} 33. a5 {[%emt 0:02:09]} Na4 {[%emt 0:00:30]} 34. a6 {[%emt 0:01:26]} Nb6 {[%emt 0:01:14]} 35. Nc1 {[%emt 0:02:32]} Nc4 {[%emt 0:00:31]} 36. a7 {[%emt 0:01:53]} Rc8 {[%emt 0:00:01]} 37. Re2 {[%emt 0:01:09]} b2 {[%emt 0:00:59]} 38. Rxb2 Nxb2 {[%emt 0:00:05]} 39. Nxa2 {[%emt 0:00:18]} 1-0

[Event "FIDE WCCC U10 2018"]
[Site "Santiago de Compostela"]
[Date "2018.11.11"]
[Round "7"]
[White "Royal, Shreyas"]
[Black "Lyakh, Vasiliy"]
[Result "1/2-1/2"]
[ECO "A44"]
[WhiteElo "2048"]
[BlackElo "1363"]
[Annotator "NA RC"]
[PlyCount "133"]
[EventDate "2018.11.04"]
[EventType "swiss"]
[EventCountry "ESP"]
[SourceTitle "playchess.com"]
[Source "ChessBase"]
[SourceQuality "1"]
[TimeControl "40/5400+30:1800+30"]

{[%evp 13,133,97,32767,89,100,105,108,109,32767,111,275,32767,32767,176,32767,32767,32767,32767,32767,32767,32767,32767,32767,32767,32767,32767,58,68,32767,20,32767,9,0,32767,32767,32767,251,268,254,32767,310,347,314,172,146,89,114,89,32767,97,85,32767,32767,32767,187,32767,54,32767,31,19,32767,32767,32767,32767,32767,32767,32767,8,0,8,32767,32767,0,8,8,32767,8,8,32767,0,0,8,8,0,0,8,8,0,8,8,0,8,8,8,0,32767,32767,8,32767,32767,8,0,0,8,8,8,8,8,8,8,8,8,8,8,0,8,8,0,8,8,8,-8]} 1. d4 {[%emt 0:00:00]} c5 {[%emt 0:00:00]} 2. d5 {[%emt 0:01:10]} e5 {[%emt 0:00:00]} 3. e4 {[%emt 0:01:59]} d6 {[%emt 0:00:00]} 4. Nf3 {[%emt 0:02:07]} Be7 {[%emt 0:03:48]} 5. Be2 {[%emt 0:01:40]} Nf6 {[%emt 0:00:53]} 6. Nc3 {[%emt 0:01:13]} a6 {[%emt 0:02:08] [#] A44: Semi-Benoni} (6... O-O 7. O-O Ne8 8. Nd2 Nd7 9. a4 g6 10. Nc4 Nb6 11. Ne3 f5 12. a5 Nd7 13. exf5 gxf5 14. f4 exf4 15. Nc4 Bg5 16. Bxf4 Bxf4 17. Rxf4 {1-0 (70) Lopez Martinez,J (2549)-Munoz Pantoja,M (2452) Mollet del Valles 2016}) 7. a4 $1 {[%emt 0:02:41]} Nbd7 {[%emt 0:02:23]} 8. O-O {[%emt 0:01:35] LiveBook: 4 Games} h6 {[%emt 0:05:46]} 9. Nd2 {[%emt 0:02:39]} Nf8 {[%emt 0:08:58]} 10. Nc4 {[%emt 0:02:39]} b6 $146 {[%emt 0:04:45]} ({Predecessor:} 10... g5 11. a5 Ng6 12. Re1 {1-0 (45) Asfora,M (2201)-Nunes,M (2083) Recife 2014}) 11. f4 {[%emt 0:01:33]} exf4 $2 (11... N8d7 $16 12. Qe1 O-O) 12. Bxf4 {[%emt 0:00:06]} Ng6 {[%emt 0:01:21]} 13. Bg3 {[%emt 0:00:05]} O-O {[%emt 0:00:48]} 14. e5 {[%emt 0:07:36]} Ne8 {[%emt 0:02:50]} 15. exd6 {[%emt 0:04:33]} Nxd6 {[%emt 0:00:16]} 16. Bxd6 {[%emt 0:05:13]} Bxd6 {[%emt 0:14:08]} 17. Bh5 Bb7 18. Bxg6 {[%emt 0:05:00]} fxg6 {[%emt 0:00:59]} 19. Qg4 {[%emt 0:00:36]} Kh7 {[%emt 0:18:18]} 20. Rxf8 {[%emt 0:03:47]} Bxf8 {[%emt 0:00:23]} 21. Re1 {[%emt 0:08:23]} (21. Qe6 $16) 21... b5 {[%emt 0:08:54]} 22. Ne5 {[%emt 0:02:50]} Qf6 {[%emt 0:02:32]} 23. axb5 {[%emt 0:06:05]} axb5 {[%emt 0:02:21]} 24. Nd7 {[%emt 0:00:36]} Qf5 $2 {[%emt 0:02:13]} (24... Qd8 $1 $11 {und Schwarz muss sich keine Sorgen machen.}) 25. Qxf5 {[%emt 0:00:32]} gxf5 {[%emt 0:00:06]} 26. Nxb5 {[%emt 0:00:14]} Rd8 {[%emt 0:05:05]} 27. Nxf8+ {[%emt 0:01:45]} Rxf8 {[%emt 0:00:03]} 28. Nc3 {[%emt 0:02:56]} (28. c4 $142) 28... Rd8 {[%emt 0:00:59]} 29. Rd1 {[%emt 0:01:52]} (29. b3 $142) 29... Kg6 {[%emt 0:00:28]} 30. Na4 {[%emt 0:03:58]} Rxd5 {[%emt 0:03:40]} 31. Rxd5 {[%emt 0:00:09]} Bxd5 {[%emt 0:00:03]} 32. Nxc5 {[%emt 0:00:10]} Kf6 {[%emt 0:00:29]} 33. Nd3 {[%emt 0:00:07]} g5 {[%emt 0:00:34]} 34. Kf2 {[%emt 0:01:00]} f4 {[%emt 0:00:33]} 35. g3 {[%emt 0:00:24]} fxg3+ {[%emt 0:01:42]} 36. Kxg3 {[%emt 0:01:01]} Kf5 {[%emt 0:00:17]} 37. b4 {[%emt 0:02:00]} h5 38. h4 {[%emt 0:00:26]} gxh4+ {[%emt 0:03:05]} 39. Kxh4 {[%emt 0:00:08]} Ke4 {[%emt 0:00:15]} 40. Kxh5 {[%emt 0:00:00]} Kd4 {[%emt 0:00:00]} 41. Kg5 {[%emt 0:12:35]} Kc3 {[%emt 0:00:56]} 42. b5 {[%emt 0:00:05]} Kc4 {[%emt 0:00:43]} 43. Nf4 {[%emt 0:03:39]} Be4 {[%emt 0:01:20]} 44. Ne2 {[%emt 0:00:21]} Bf3 {[%emt 0:03:57]} 45. Kf4 {[%emt 0:01:45]} Bb7 {[%emt 0:00:35]} 46. b6 {[%emt 0:02:51]} Kb5 {[%emt 0:00:29]} 47. Ke5 {[%emt 0:01:16]} Kxb6 {[%emt 0:00:08]} 48. Kd4 {[%emt 0:00:13]} Kc6 {[%emt 0:01:10]} 49. Nc1 {[%emt 0:00:27]} Kc7 {[%emt 0:00:46]} 50. Nb3 {[%emt 0:00:14]} Bh1 51. Kc5 {[%emt 0:00:46]} Be4 {[%emt 0:00:57]} 52. c3 {[%emt 0:00:03]} Bh1 {[%emt 0:00:09]} 53. Nd4 {[%emt 0:00:22]} Be4 {[%emt 0:00:17]} 54. Nb5+ {[%emt 0:00:06]} Kd7 {[%emt 0:00:16]} 55. Nd6 {[%emt 0:00:39]} Bg2 {[%emt 0:00:10]} 56. Nf5 {[%emt 0:00:08]} Bf1 {[%emt 0:01:28]} 57. Ne3 {[%emt 0:00:06]} Bd3 {[%emt 0:00:38]} 58. Kd4 {[%emt 0:00:40]} Ba6 {[%emt 0:00:21]} 59. Nc2 {[%emt 0:00:06]} Bf1 {[%emt 0:00:21]} 60. Nb4 {[%emt 0:00:27]} Bb5 {[%emt 0:00:38]} 61. Nd3 {[%emt 0:00:18]} Kd6 {[%emt 0:00:28]} 62. Nf2 {[%emt 0:00:13]} Bf1 {[%emt 0:00:15]} 63. Ne4+ {[%emt 0:00:22]} Kc6 {[%emt 0:00:10]} 64. Nd2 {[%emt 0:00:04]} Ba6 {[%emt 0:00:17]} 65. Nc4 {[%emt 0:00:05]} Bb5 {[%emt 0:00:16]} 66. Ne5+ {[%emt 0:00:08]} Kd6 $11 {[%emt 0:00:25]} 67. Nd7 {[%emt 0:00:06] Kd5+} 1/2-1/2